Cogmind - Beta 13 @@@ ROGUE MODE // 2024.05.13 @ 23:29:40 Player: BatSpy Result: Destroyed by G-47 Trooper with Particle Gun Performance ------------- Evolutions (3) 1500 Regions Visited (5) 1000 Robots Destroyed (101) 505 Value Destroyed (2973) 2973 Prototype IDs (6) 120 Alien Tech Used (0) 0 Bonus (121) 121 TOTAL SCORE: 6219 Bonus ------- High Alert Combat Kills 48 Entered Garrisons 200 Friendly Fire -127 Cogmind --------- Core Integrity 0/700 Matter 5/300 Energy 216/220 System Corruption 12% Temperature Cool (23) Movement Treading (160) Location -7/Garrison Parts ------- > --- POWER (2) -------- Light Nuclear Core Light Nuclear Core > --- PROPULSION (3) --- Light Treads Light Treads > --- UTILITY (5) ------ Improved Heat Sink Coolant Injector Weapon Cycler > --- WEAPON (3) ------- (None) > --- INVENTORY (5) ---- (None) Peak State ------------ > --- POWER ------------ Light Nuclear Core Light Nuclear Core > --- PROPULSION ------- Carbon-fiber Leg Carbon-fiber Leg Carbon-fiber Leg > --- UTILITY ---------- Improved Heat Sink Coolant Injector Advanced Weight Redist. System Weapon Cycler > --- WEAPON ----------- High-powered Shotgun Gauss Rifle Flak Gun > --- INVENTORY -------- Light Nuclear Core Light Nuclear Core Remote Datajack [Rating: 41] Favorites ----------- Power Improved Ion Engine Engine Improved Ion Engine Power Core Light Nuclear Core Propulsion Flight Unit Treads Light Treads Leg Aluminum Leg Wheel Wheel Hover Unit Improved Hover Unit Flight Unit Flight Unit Utility Improved Heat Sink Device Improved Heat Sink Storage Compact Matter Pod Processor Targeting Computer Hackware System Shield Protection Reflective Plating Weapon Flak Cannon Energy Gun Improved Medium Laser Energy Cannon Cooled Particle Cannon Ballistic Gun Assault Rifle Ballistic Cannon Flak Cannon Special Weapon Mining Laser Build | -11 -10 -9 -8 -7 -7 ------- Run | Yrd Mat Mat Mat Fac Gar Slots Evolved 6 | . . 2 2 2 . Power 1 | . . 1 . . . Propulsion 1 | . . . 1 . . Utility 3 | . . 1 . 2 . Weapon 1 | . . . 1 . . Parts Attached 136 | 6 6 27 60 26 11 Power 25 | 1 1 7 10 4 2 Engine 17 | 1 1 6 8 1 . Core 8 | . . 1 2 3 2 Reactor . | . . . . . . Propulsion 34 | 2 1 7 17 4 3 Treads 10 | . . . 7 . 3 Leg 10 | 2 1 2 1 4 . Wheel 5 | . . 3 2 . . Hover 5 | . . 1 4 . . Flight 4 | . . 1 3 . . Utility 36 | 1 2 6 12 12 3 Device 26 | 1 . 1 10 12 2 Storage 1 | . . . 1 . . Processor 4 | . 2 2 . . . Hackware 1 | . . . 1 . . Protection 4 | . . 3 . . 1 Artifact . | . . . . . . Weapon 41 | 2 2 7 21 6 3 Energy Gun 9 | 2 . 1 4 1 1 Energy Cannon 5 | . . . 5 . . Ballistic Gun 9 | . 2 1 1 4 1 Ballistic Cannon 14 | . . 3 11 . . Launcher . | . . . . . . Special Weapon 4 | . . 2 . 1 1 Impact Weapon . | . . . . . . Slashing Weapon . | . . . . . . Piercing Weapon . | . . . . . . Special Melee Weapon . | . . . . . . Unidentified Prototypes 3 | . . . 3 . . Corrupted Parts 1 | . . . 1 . . System Corruption 1 | . . . 1 . . Parts Lost 61 | . 1 19 11 16 14 Power 11 | . . 4 2 3 2 Propulsion 20 | . 1 5 6 4 4 Utility 15 | . . 5 2 5 3 Weapon 15 | . . 5 1 4 5 Highest Loss Streak 11 | . 1 11 4 10 11 To Critical Strikes . | . . . . . . Average Slot Usage (%) 88 | . 97 77 93 89 71 Engine 12 | . 14 11 15 9 . Core 2 | . . 2 1 1 13 Treads 3 | . . . 2 11 1 Leg 4 | . 26 4 . 2 16 Wheel 4 | . . 6 5 . . Hover 3 | . . . 6 . . Flight 4 | . . . 8 4 . Device 16 | . . . 18 35 22 Processor 6 | . 27 12 1 . . Hackware 1 | . . . 4 . . Protection 4 | . . 17 . . . Energy Gun 3 | . 1 . 4 3 . Energy Cannon 4 | . . . 4 11 . Ballistic Gun 5 | . 26 4 . 5 16 Ballistic Cannon 10 | . . 13 16 . . Naked Turns . | . . . . . . Heaviest Build 45 | 6 7 32 45 38 28 Greatest Support 49 | 20 20 22 46 49 48 Greatest Overweight (x) 10 | . . 10 9 7 1 Average Overweight (x) . | . . 1 1 . . Largest Inventory Capacity 5 | 5 5 5 5 5 5 Average Capacity 5 | 5 5 5 5 5 5 Most Carried 5 | 3 5 5 5 5 5 Average Carried 3 | . 3 1 4 3 3 Final Capacity 5 | 5 5 5 5 5 5 Final Carried 5 | 2 5 4 4 4 . Class Distribution -------------------- 24% | Mutant 20% | Skirmisher 16% | Scavenger-Gunner 16% | Scavenger-Tank 11% | Scavenger-Mutant 6% | Tank Dominant Class ---------------- Mutant | -10/Materials Scavenger-Mutant | -9/Materials Skirmisher | -8/Materials Scavenger-Tank | -7/Factory Scavenger-Gunner | -7/Garrison Resources | -11 -10 -9 -8 -7 -7 ----------- Run | Yrd Mat Mat Mat Fac Gar Matter Collected 2896 | 260 260 436 1508 272 160 Remotely 40 | . . 40 . . . Salvage Created 3303 | 45 435 731 1279 769 44 Parts 192 | 4 30 38 76 40 4 Haulers Intercepted 2 | . . 1 1 . . Recyclers Shooed 3 | . . . 3 . . Parts Field Recycled 44 | . . . 44 . . Retrieved Matter 304 | . . . 304 . . Parts Self-Destructed . | . . . . . . Prevented . | . . . . . . Kills | -11 -10 -9 -8 -7 -7 ------- Run | Yrd Mat Mat Mat Fac Gar Combat Hostiles Destroyed 71 | 1 10 17 28 12 3 Guns 36 | 1 10 10 6 6 3 Cannons 31 | . . 7 21 3 . AOE 3 | . . . 1 2 . Classes Destroyed 12 | 1 2 5 2 2 . Worker 6 | . . 3 2 1 . Builder 5 | . . . 4 1 . Hauler 2 | . . 1 1 . . Recycler 8 | . . 2 5 1 . Mechanic 1 | . . . . 1 . Watcher 7 | . 2 1 3 1 . Swarmer 24 | . 3 3 12 3 3 Grunt 24 | 1 7 7 6 3 . Brawler 1 | . . 1 . . . Sentry 15 | . . 6 8 1 . Hunter 5 | . . . 2 3 . Programmer 2 | . . . . 2 . Thug 1 | . . . . 1 . Best Kill Streak 7 | 1 3 7 5 5 3 Combat Bots Only 7 | 1 3 7 5 3 3 Max Kills in Single Turn 2 | 1 1 1 2 2 2 Gunslinging 1 | . . . . . 1 Exploded 2 | . . . 1 2 . Melee . | . . . . . . Uniques/NPCs Destroyed . | . . . . . . Combat | -11 -10 -9 -8 -7 -7 -------- Run | Yrd Mat Mat Mat Fac Gar Hostile Shots Fired 820 | 4 54 174 266 160 162 Missed 266 | 2 17 56 78 58 55 Damage Taken 7468 | 21 460 1530 2147 1559 1751 Core 1420 | 11 83 330 294 334 368 Absorbed by Shields 176 | . . . 176 . . Ignored by Resistances 61 | . . 57 4 . . Regen/Repaired (Parts) 224 | . . 58 166 . . Core Remaining (%) 55 | 95 62 17 46 . . Volleys Fired 299 | 3 38 79 96 35 48 Largest 3 | 2 2 2 3 3 3 Hottest 200 | 80 40 200 150 128 81 Shots Fired 590 | 6 76 116 231 95 66 Gun 296 | 6 76 50 54 50 60 Cannon 285 | . . 63 177 45 . Launcher . | . . . . . . Special 9 | . . 3 . . 6 Kinetic 410 | . 76 91 150 38 55 Thermal 159 | 6 . 25 66 57 5 Explosive . | . . . . . . Electromagnetic 15 | . . . 15 . . Robot Hit Streak 31 | 3 9 8 9 9 31 Robot Miss Streak 20 | 1 3 8 20 8 9 Penetration Max 1 | . . . . 1 . Secondary Targets 3 | . . . 1 1 1 Max Gunslinging Chain 1 | . . . 1 1 1 Shots Hit Robots 394 | 4 51 94 137 56 52 Core Hits 233 | 2 20 58 98 34 21 Critical Kills 2 | . . 1 . 1 . Critical Parts Destroyed . | . . . . . . Critical Strikes 9 | . . 2 6 1 . Burn 6 | . . 1 5 . . Meltdown 1 | . . . . 1 . Destroy 1 | . . 1 . . . Blast 1 | . . . 1 . . Melee Attacks . | . . . . . . Impact . | . . . . . . Slashing . | . . . . . . Piercing . | . . . . . . Sneak Attacks . | . . . . . . Combat Hostiles . | . . . . . . Follow-up Attacks . | . . . . . . Damage Inflicted 7719 | 45 627 1412 3028 1938 669 Guns 3015 | 45 627 401 629 647 666 Cannons 4021 | . . 884 2271 866 . Explosions 629 | . . 79 125 425 . Melee . | . . . . . . Ramming 6 | . . . 3 . 3 Kinetic 4527 | . 627 1053 1852 485 510 Thermal 2351 | 45 . 359 763 1028 156 Explosive 550 | . . . 125 425 . Electromagnetic 285 | . . . 285 . . Impact . | . . . . . . Slashing . | . . . . . . Piercing . | . . . . . . Highest Corruption 12 | . 3 . 6 2 12 Average Corruption 4 | . 2 . 5 1 2 Corruption Purged . | . . . . . . Corruption Blocked . | . . . . . . Effects 76 | . 5 . 56 6 9 Message Errors 19 | . 1 . 15 2 1 Matter Fused 20 | . 2 . 14 2 2 Heat Flow Errors 4 | . . . 4 . . Energy Discharges 7 | . . . 5 . 2 Parts Rejected 5 | . . . 5 . . Parts Fused 2 | . . . 2 . . Data Loss (minor) 3 | . . . 3 . . Data Loss (major) 5 | . 2 . 1 . 2 Misfires 5 | . . . 3 2 . Alerts 3 | . . . 1 . 2 Weapon Failures 3 | . . . 3 . . Overload Shots . | . . . . . . Overflow Damage 161 | . . 55 1 105 . Projectiles 54 | . . . 1 53 . Explosions 107 | . . 55 . 52 . Melee . | . . . . . . Knockbacks 55 | . . 24 31 . . Impact . | . . . . . . Kinetic 54 | . . 24 30 . . Secondary 1 | . . . 1 . . Self-Inflicted Damage 103 | . . 102 1 . . Shots 1 | . . 1 . . . Rammed 1 | . . . 1 . . Targets Rammed 3 | . . . 1 . 2 Kicked 2 | . . . . . 2 Crushed . | . . . . . . Highest Temperature 492 | 60 21 361 492 46 182 Average Temperature 112 | 31 8 98 132 15 65 Received Heat Transfer 2322 | 12 261 732 561 387 369 Effects 13 | . . 3 10 . . Shutdowns 3 | . . . 3 . . Energy Bleed 3 | . . 1 2 . . Interference 6 | . . 2 4 . . Matter Decay 1 | . . . 1 . . Siege Activations . | . . . . . . Robots Corrupted . | . . . . . . Combat Hostiles . | . . . . . . Parts Fried 1 | . . . 1 . . Impact Corruptions . | . . . . . . Robots Melted 1 | . . . . 1 . Combat Hostiles 1 | . . . . 1 . Parts Melted 8 | . . . 2 6 . Heat Transferred 4300 | 100 . 816 1665 1369 350 Parts Sabotaged . | . . . . . . Parts Stolen . | . . . . . . Parts Stripped . | . . . . . . Power Chain Reactions . | . . . . . . Alert | -11 -10 -9 -8 -7 -7 ------- Run | Yrd Mat Mat Mat Fac Gar Peak Influence 460 | 20 272 307 460 270 246 Initial 196 | . 13 66 126 196 126 Average 226 | 5 131 157 321 164 210 Maximum Alert Level 2 | . 1 1 2 1 1 Low Security (%) 45 | 100 67 68 8 92 39 Level 1 45 | . 32 31 71 7 60 Level 2 8 | . . . 19 . . Level 3 . | . . . . . . Level 4 . | . . . . . . Level 5 . | . . . . . . High Security . | . . . . . . Max Security . | . . . . . . Squads Dispatched 12 | . 2 . 3 7 . Investigation . | . . . . . . Extermination 2 | . . . . 2 . Reinforcement 7 | . 2 . 3 2 . Assault . | . . . . . . Garrison 3 | . . . . 3 . Intercept . | . . . . . . Searches Triggered . | . . . . . . Construction Impeded 2 | . . . 1 1 . Haulers Reinforced 1 | . . . . 1 . Active Scanning Responses . | . . . . . . Cargo Convoy Interrupts . | . . . . . . Stealth | -11 -10 -9 -8 -7 -7 --------- Run | Yrd Mat Mat Mat Fac Gar Distress Signals 6 | . 1 2 1 2 . Communications Jammed . | . . . . . . Distress Signals . | . . . . . . Times Spotted 124 | 1 15 32 40 20 16 Peak Tracking Total 8 | 1 3 7 6 6 8 Tactical Retreats 6 | . . 1 . 3 2 Traps | -11 -10 -9 -8 -7 -7 ------- Run | Yrd Mat Mat Mat Fac Gar Traps Triggered 7 | . 2 . 4 . 1 Indirectly . | . . . . . . Trap Hack Attempts . | . . . . . . Triggered . | . . . . . . Disarmed . | . . . . . . Reprogrammed . | . . . . . . Reused . | . . . . . . Traps Extracted . | . . . . . . Installed . | . . . . . . Triggered . | . . . . . . Machines | -11 -10 -9 -8 -7 -7 ---------- Run | Yrd Mat Mat Mat Fac Gar Machines Disabled 11 | . . 4 3 3 1 Max in Single Turn 3 | . . 3 2 2 1 Garrison Relay 1 | . . . . . 1 Machines Repaired . | . . . . . . Machines Dismantled . | . . . . . . Machines Sabotaged . | . . . . . . Overloaded Fab Kills . | . . . . . . Hacking | -11 -10 -9 -8 -7 -7 --------- Run | Yrd Mat Mat Mat Fac Gar Machines Accessed 15 | . 2 5 7 1 . Terminals 8 | . 2 2 4 . . Fabricators . | . . . . . . Repair Stations 3 | . . 1 2 . . Recycling Units 1 | . . . 1 . . Scanalyzers 2 | . . 2 . . . Garrison Access 1 | . . . . 1 . Total Hacks 31 | . 3 8 17 3 . Successful 22 | . 2 7 12 1 . Failed 8 | . 1 1 4 2 . Catastrophic . | . . . . . . Database Lockouts 1 | . . . 1 . . Manual . | . . . . . . Terminals 16 | . 3 2 11 . . Fabricators . | . . . . . . Repair Stations 7 | . . 2 5 . . Recycling Units 1 | . . . 1 . . Scanalyzers 4 | . . 4 . . . Garrison Access 3 | . . . . 3 . Terminal Hacks 10 | . 2 2 6 . . Record 7 | . 1 1 5 . . Prototype ID Bank 1 | . . 1 . . . Terminal Index 1 | . . . 1 . . Dispatch Records 1 | . 1 . . . . Fabricator Hacks . | . . . . . . Repair Station Hacks 7 | . . 2 5 . . Scan Component 4 | . . 1 3 . . Repair 3 | . . 1 2 . . Recycling Unit Hacks 1 | . . . 1 . . Report Inventory 1 | . . . 1 . . Scanalyzer 3 | . . 3 . . . Insert Component 2 | . . 2 . . . Analyze 1 | . . 1 . . . Garrison Access Hacks 1 | . . . . 1 . Unlock Access 1 | . . . . 1 . Unauthorized Hacks . | . . . . . . Terminals . | . . . . . . Fabricators . | . . . . . . Repair Stations . | . . . . . . Recycling Units . | . . . . . . Scanalyzers . | . . . . . . Garrison Access . | . . . . . . Data Cores Recovered . | . . . . . . Used . | . . . . . . Hacking Detections 5 | . . 1 3 1 . Full Trace Events . | . . . . . . Feedback Events . | . . . . . . Feedback Blocked . | . . . . . . Robot Schematics Acquired . | . . . . . . Robots Built . | . . . . . . Authchips . | . . . . . . Time . | . . . . . . Total Robot Build Rating . | . . . . . . Part Schematics Acquired 1 | . . 1 . . . Parts Built . | . . . . . . Authchips . | . . . . . . Time . | . . . . . . Total Part Build Rating . | . . . . . . Parts Repaired 3 | . . 1 2 . . Time 114 | . . 38 76 . . Parts Recycled . | . . . . . . Recycled Matter . | . . . . . . Retrieved Matter . | . . . . . . Retrieved Components . | . . . . . . Parts Scanalyzed 1 | . . 1 . . . Part Schematics Acquired 1 | . . 1 . . . Parts Damaged . | . . . . . . Bothacking | -11 -10 -9 -8 -7 -7 ------------ Run | Yrd Mat Mat Mat Fac Gar Used RIF Installer . | . . . . . . Robots Hacked 2 | . . . . . 2 Non-combat . | . . . . . . Combat 2 | . . . . . 2 Robot Hacks Applied 2 | . . . . . 2 parse_system 2 | . . . . . 2 Relay Couplers Released 4 | . . . . . 4 Machine Destruction 4 | . . . . . 4 Fabnet Peak Effective % . | . . . . . . Robots Rewired . | . . . . . . Allies Hacked . | . . . . . . Hacks Repelled . | . . . . . . Allies | -11 -10 -9 -8 -7 -7 -------- Run | Yrd Mat Mat Mat Fac Gar Total Allies . | . . . . . . Largest Group . | . . . . . . Highest-Rated Group . | . . . . . . Highest-Rated Ally . | . . . . . . Total Orders . | . . . . . . Ally Attacks . | . . . . . . Total Damage . | . . . . . . Kills . | . . . . . . Allies Corrupted . | . . . . . . Allies Melted . | . . . . . . Intel | -11 -10 -9 -8 -7 -7 ------- Run | Yrd Mat Mat Mat Fac Gar Robot Analysis Total . | . . . . . . Derelict Logs Recovered . | . . . . . . Drone Launches . | . . . . . . Drone Recoveries . | . . . . . . Exploration | -11 -10 -9 -8 -7 -7 ------------- Run | Yrd Mat Mat Mat Fac Gar Turns Passed 5377 | 142 516 1136 2319 941 323 Spaces Moved 2991 | 110 319 630 1243 503 186 Core 205 | 31 . 79 7 23 65 Treads 538 | . . . 114 410 14 Legs 707 | 79 319 132 . 70 107 Wheels 730 | . . 304 426 . . Hover 394 | . . 32 362 . . Flight 417 | . . 83 334 . . Fastest Speed 40 | 50 120 40 100 50 50 Average Speed 139 | 100 120 139 146 155 100 Slowest Speed 600 | 120 120 550 600 400 190 Overloaded Moves . | . . . . . . Propulsion Burnouts . | . . . . . . Robots Hopped 1 | . . 1 . . . Cave-ins Triggered . | . . . . . . Exploration Rate (%) 36 | 6 59 47 70 9 29 Regions Visited 5 Branch Regions . Pre-discovered Areas . | . . . . . . Known Exits Taken 1 | . . . . 1 . Unknown Exits Taken 4 | 1 1 1 1 . . Scrap Searched . | . . . . . . Spaces Dug . | . . . . . . Terrain Destroyed 78 | . . 24 40 14 . Melee . | . . . . . . Projectile 28 | . . . 24 4 . AOE 50 | . . 24 16 10 . Terrain Rammed . | . . . . . . Walls Destroyed . | . . . . . . Machines Disabled . | . . . . . . Actions | -11 -10 -9 -8 -7 -7 --------- Run | Yrd Mat Mat Mat Fac Gar Total 3699 | 135 376 770 1554 590 274 Wait 89 | 9 . . 79 . 1 Move 2984 | 109 318 627 1242 502 186 Hop 1 | . . 1 . . . Pick Up 125 | 8 9 29 44 22 13 Fast Attach 9 | . . . 9 . . Attach 76 | 6 1 22 17 17 13 Detach . | . . . . . . Swap 55 | . 5 5 34 9 2 Drop 53 | . 5 7 32 5 4 Fire 299 | 3 38 79 96 35 48 Melee . | . . . . . . Ram 1 | . . . 1 . . Kick 2 | . . . . . 2 Crush . | . . . . . . Escape Stasis 5 | . . . . . 5 Rewire . | . . . . . . Trap . | . . . . . . Miscellaneous . | . . . . . . Route ------- -11/Scrapyard -10/Materials (discovered 3 exits: *Mat x2 / [*Min]) -9/Materials (discovered 2 exits: *Mat / [*Min]) -8/Materials (discovered 2 exits: *Fac x2) -7/Factory -7/Garrison History --------- Turn | Location | Event 2 | -11/Scrapyard | Met Revision 17 88 | -11/Scrapyard | Discovered new exit (range 8) 143 | -11/Scrapyard | Entered Materials 195 | -10/Materials | Discovered new exit (range 13) 302 | -10/Materials | Build established: Mutant 400 | -10/Materials | Discovered new exit (range 15) 596 | -10/Materials | Discovered new exit (range 13) 659 | -10/Materials | Entered another Materials area 659 | -9/Materials | Evolved 2 slots: Power x1, Utility x1 986 | -9/Materials | Destroyed 7 combat bots 990 | -9/Materials | Lost 5 parts (2p2n1w) 1042 | -9/Materials | Core integrity fell below 50% 1043 | -9/Materials | Discovered new exit (range 9) 1130 | -9/Materials | Lost 11 parts (2p2n4u3w) 1467 | -9/Materials | Core integrity fell below 20% 1571 | -9/Materials | Repaired Flak Cannon? 1683 | -9/Materials | Discovered new exit (range 16) 1795 | -9/Materials | Entered another Materials area 1795 | -8/Materials | Evolved 2 slots: Propulsion x1, Weapon x1 2150 | -8/Materials | Build established: Skirmisher 2304 | -8/Materials | Discovered new exit (range 16) 2712 | -8/Materials | Repaired Flak Cannon 2752 | -8/Materials | Repaired Trap Scanner 3089 | -8/Materials | Central database locked down 3266 | -8/Materials | Lost 4 parts (1p3n) 3787 | -8/Materials | Build established: Scavenger-Gunner 4026 | -8/Materials | Core integrity fell below 50% 4035 | -8/Materials | Lost 3 parts (2n1w) 4106 | -8/Materials | Discovered new exit (range 5) 4114 | -8/Materials | Entered Factory 4114 | -7/Factory | Evolved 2 slots: Utility x2 4397 | -7/Factory | Build established: Scavenger-Tank 4834 | -7/Factory | Garrison activated, responded to threat 4929 | -7/Factory | Lost 10 parts (1p2n4u3w) 5004 | -7/Factory | Identified exit to Garrison 5055 | -7/Factory | Entered Garrison 5075 | -7/Garrison | Triggered checkpoint 5129 | -7/Garrison | Garrison Relay disabled 5248 | -7/Garrison | Build established: Scavenger-Gunner 5272 | -7/Garrison | Core integrity fell below 50% 5304 | -7/Garrison | Core integrity fell below 20% 5334 | -7/Garrison | Lost 11 parts (2p3n2u4w) 5373 | -7/Garrison | System corruption reached 10% 5378 | -7/Garrison | Destroyed by G-47 Trooper with Particle Gun Last Messages --------------- System corrupted: IFF burst signal emitted. Dropped Lgt. Treads. Acquired Med. Treads. Acquired Gatling Laser. Acquired Lgt. Treads. Acquired Hvy. Armor Plating. Acquired Lgt. Treads. Critical hit (Burn: +37). System corrupted: Substantial component data lost. Med. Treads destroyed. System corrupted by crushing effect (+5). B-48 Gladiator heat damages Imp. Light Armor Plating. G-47 Trooper suffers critical hit (Burn). Gatling Laser destroyed. System corrupted by crushing effect (+5). [Achievement: System Compromised] Hvy. Armor Plating destroyed. [Achievement: 5k Club] Map ----- +----------------------------------------------------+ | ???????? ?????????????????????????? | | ????????# ## ## #?????????????????????????? | | ????????# ## ## #?????????????????????????? | | ????????" "?????????????????????????? | | ????????" "?????????????????????????? | | ????????" "?????????????????????????? | | ????????" "?????????????????????????? | | ????????# ## ## #?????????????????????????? | | ######### ## ## ############??????????????? | | #??????????????? | | #??????????????? | | ######## #??????????????? | | #??????######""""############# #??????????????? | | #????????????????????????????# #??????????????? | | #????????????????????????????# #??????????????? | | #????????????????????????????# #??????????????? | | +????????????????????????????# #??????????????? | | #????????????????????????????# #??????????????? | | #????????????????????????????# #??????????????? | | #????????????????????????????# #??????????????? | | #????????????????????????????# #??????????????? | | #????????????????????????????# #??????????????? | | #????????????????????????????# #??????????????? | | #????????????????############# #??????????????? | | ##????????????????# [b ## #??????????????? | | ??????????????????# gbg @ ## #??????????????? | | ????#???#######???# ## #??????????????? | | ??? #???#"" ""#???# gg ## #??????????????? | | ###+###### ##???# Y g ## #??????????????? | | [ = [[#???# ## ######?????????? | | #### " ########???# Y ??? | | ???#" #??????????# ## ??? | | ???#####??????????# ## ??? | | ??????????????????# #################???? | | ??????????????????############???????????????????? | | ?????????????????????????????????????????????????? | | ?????????????????????????????????????????????????? | | ?????????????????????????????????????????????????? | | ?????????????????????????????????????????????????? | | ?????????????????????????????????????????????????? | | ?????????????????????????????????????????????????? | | ?????????????????????????????????????????????????? | | ?????????????????????????????????????????????????? | | ?????????????????????????????????????????????????? | | ?????????????????????????????????????????????????? | | ?????????????????????????????????????????????????? | | ?????????????????????????????????????????????????? | | ?????????????????????????????????????????????????? | | ?????????????????????????????????????????????????? | | ?????????????????????????????????????????????????? | +----------------------------------------------------+ Best States ------------- Heat Dissipation 62 Coolant Potential 65 Energy Generation 23 Energy Capacity 430 Matter Stores 323 Matter Capacity 450 Sight Range 16 Terrain Scan Density 10 Additional Mass Support 9 Armor Coverage 600 Resistance: TH 10 Weapon Cycling 15 Evasion (%) 62 Targeting Accuracy 15 Recoil Reduction 2 Energy Filtering 30 Defensive Hacking 10 Item Schematics ----------------- Imp. Hover Unit | -9/Materials | Scanalyzed Robot Schematics ------------------ None Fabricated ------------ Nothing Alien Tech Used ----------------- None Achievements -------------- 5k Club Backstab It's Just You Made in Tau Ceti IV More Dakka Please Please Form A Line Risk Taker Safety First System Compromised Troublemaker Universal Adapter Challenges ------------ None Game ------ Seed ArcFissionFlightbrick Manual? 0 Play Time 01:19:46 Cumulative 2.7 hours Start 2024.05.13 @ 18:55:17 End 2024.05.13 @ 23:29:40 Sessions 3 Manual Loads 0 Difficulty Rogue Special Mode None Game No. 3 Rogue 3 Adventurer 0 Explorer 0 Win Type - Total 0 Types 0/0/0/0/0/0/0/0/0 Lore% 1 Gallery% 9 Achievement% 7 Wizard Run 0 Options --------- Layout 1 ASCII 0 Keyboard 0 Movement Mouse Keybinds 0 Fullscreen 2 Font 32/SmallcapsGlow Map View 50x35 Zoom Use 0% Tactical HUD 0 Map Filters NONE Filters NONE Steam 1 RUN: 1a67cfc4-4fa3-4acd-a067-a4a03200e89b